[Event "5th Baskent University Open 2022"]
[Site "Ankara"]
[Date "2022.07.04"]
[Round "4.24"]
[White "Kocakaplan, Emre"]
[Black "Banci, Dogancan"]
[Result "0-1"]
[ECO "A27"]
[WhiteElo "1805"]
[BlackElo "1608"]
[Annotator "NA RC"]
[PlyCount "128"]
[EventDate "2022.07.02"]
[EventType "swiss"]
[EventCountry "TUR"]
[SourceTitle "playchess.com"]
[Source "ChessBase"]
[SourceQuality "1"]
[TimeControl "5400+30"]

1. c4 {[%emt 0:01:00]} e5 {[%emt 0:01:00]} 2. Nc3 {[%emt 0:00:30]} Nc6 {[%emt 0:00:30]} 3. Nf3 {[%emt 0:00:30]} f5 {[%emt 0:01:30]} 4. d4 {[%emt 0:04:30]} e4 {[%emt 0:04:30]} 5. Ng5 {[%emt 0:00:00]} Bb4 {[%emt 0:05:30]} 6. g3 {[%emt 0:03:00]} Nf6 {[%emt 0:01:30]} 7. a3 {[%emt 0:10:30]} Bxc3+ {[%emt 0:03:30]} 8. bxc3 {[%emt 0:00:30]} O-O {[%emt 0:05:30]} 9. Bg2 {[%emt 0:01:30]} ({Better is} 9. c5 Na5 10. Bg2) 9... d6 {[%emt 0:03:30]} 10. O-O {[%emt 0:06:30]} Qe8 {[%emt 0:03:30]} 11. f3 {[%emt 0:15:30]} h6 {[%emt 0:13:30]} 12. Nh3 {[%emt 0:00:30]} Na5 {[%emt 0:03:30]} 13. fxe4 {[%emt 0:10:30]} fxe4 {[%emt 0:00:30]} 14. Nf4 {[%emt 0:04:30]} Nxc4 {[%emt 0:12:30]} 15. Qb3 {[%emt 0:03:30]} Qc6 {[%emt 0:03:30]} 16. Ng6 {[%emt 0:01:30]} Rf7 {[%emt 0:05:30]} 17. Rb1 {[%emt 0:20:21]} Kh7 {[%emt 0:05:30]} 18. Nf4 {[%emt 0:06:22]} d5 {[%emt 0:03:30]} 19. Qc2 {[%emt 0:00:43]} Bf5 {[%emt 0:05:47]} 20. a4 {[%emt 0:06:11]} a6 {[%emt 0:04:54]} 21. Rb4 $19 {[%emt 0:00:23]} g6 {[%emt 0:02:03]} 22. h3 {[%emt 0:01:09]} h5 {[%emt 0:01:30]} 23. Qb3 {[%emt 0:00:58]} b6 {[%emt 0:00:39]} 24. Nxd5 {[%emt 0:00:14]} Nxd5 {[%emt 0:04:09]} 25. Rxc4 {[%emt 0:00:03]} Qd6 {[%emt 0:01:01]} 26. Bf4 {[%emt 0:00:58]} Nxf4 {[%emt 0:01:07]} 27. Rxf4 {[%emt 0:00:12] [#]} Be6 $1 {[%emt 0:00:58]} 28. Rxf7+ {[%emt 0:02:02]} Bxf7 {[%emt 0:00:01]} 29. Qb4 {[%emt 0:00:12]} Bxc4 {[%emt 0:00:51]} 30. Qxc4 {[%emt 0:00:02]} Rf8 {[%emt 0:00:43]} ({Not} 30... Qxg3 $2 31. Qf7+ Kh6 32. Qf2 Qxc3 33. Qf4+ Kg7 34. Qe5+ Kh7 35. Qxe4 $19) 31. g4 {[%emt 0:00:31]} (31. Qb4 $142) 31... hxg4 {[%emt 0:01:23]} 32. hxg4 {[%emt 0:00:02]} Qg3 {[%emt 0:01:03]} 33. Qe6 {[%emt 0:00:06]} Qf2+ {[%emt 0:00:20]} 34. Kh1 {[%emt 0:00:45]} e3 {[%emt 0:00:25]} 35. Bf3 {[%emt 0:01:30]} Qh4+ {[%emt 0:01:17]} 36. Kg2 {[%emt 0:00:06]} Qf6 {[%emt 0:00:26]} 37. Qxe3 {[%emt 0:00:07]} Kg7 {[%emt 0:00:58]} 38. g5 {[%emt 0:00:27]} Qd6 {[%emt 0:00:05]} 39. Kf2 {[%emt 0:01:28]} Rf5 {[%emt 0:00:30]} 40. Kg2 {[%emt 0:00:29]} Qd8 {[%emt 0:00:22]} 41. Kf1 {[%emt 0:00:24]} Qxg5 {[%emt 0:00:30]} 42. Qe8 {[%emt 0:00:10]} Qf6 {[%emt 0:00:33]} 43. Ke1 {[%emt 0:00:47]} Qf7 {[%emt 0:00:38]} 44. Qc6 {[%emt 0:00:15]} Qe7 {[%emt 0:00:26]} 45. Kd2 {[%emt 0:00:31]} Rf6 {[%emt 0:00:33]} 46. Qc4 {[%emt 0:00:56]} a5 {[%emt 0:00:14]} 47. Kc2 {[%emt 0:00:19]} g5 {[%emt 0:01:02]} 48. Qd5 {[%emt 0:00:21]} Kh6 {[%emt 0:00:43]} 49. Qg8 $2 {[%emt 0:00:16]} (49. Kd3 {might work better.}) 49... Qh7+ {[%emt 0:00:00]} 50. Qxh7+ {[%emt 0:00:12]} Kxh7 {[%emt 0:00:10]} 51. Kd3 {[%emt 0:00:30]} Rf4 {[%emt 0:00:30]} 52. Be4+ {[%emt 0:00:30]} Kh6 {[%emt 0:00:30]} 53. e3 {[%emt 0:00:30]} Rf2 {[%emt 0:00:30]} 54. Bc6 {[%emt 0:00:00]} g4 {[%emt 0:00:16]} 55. Kc4 {[%emt 0:00:12]} g3 {[%emt 0:01:01]} 56. Kb5 {[%emt 0:00:04]} g2 {[%emt 0:00:27]} 57. Bxg2 {[%emt 0:00:30]} Rxg2 {[%emt 0:00:30]} 58. Kc6 {[%emt 0:00:00]} Rg7 {[%emt 0:00:00]} 59. e4 {[%emt 0:00:36]} Kg6 {[%emt 0:00:00]} 60. c4 {[%emt 0:00:01]} Kf6 {[%emt 0:00:32]} 61. c5 {[%emt 0:00:05]} bxc5 {[%emt 0:00:23]} 62. Kxc5 {[%emt 0:00:08]} Ke6 {[%emt 0:00:48]} 63. Kb5 {[%emt 0:00:22]} Rg4 {[%emt 0:00:53]} 64. d5+ {[%emt 0:00:11]} Ke5 {[%emt 0:00:02]} 0-1

[Event "5th Baskent University Open 2022"]
[Site "Ankara"]
[Date "2022.07.04"]
[Round "5.1"]
[White "Annaberdiev, Meilis"]
[Black "Rasulov, Vugar"]
[Result "0-1"]
[ECO "C65"]
[WhiteElo "2484"]
[BlackElo "2458"]
[Annotator "TA"]
[PlyCount "110"]
[EventDate "2022.07.02"]
[EventType "swiss"]
[EventCountry "TUR"]
[SourceTitle "playchess.com"]
[Source "ChessBase"]
[SourceQuality "1"]
[TimeControl "5400+30"]

{[%evp 9,110,14,14,13,19,12,12,14,12,9,11,14,22,19,20,21,52,21,18,4,4,6,0,2,27,0,0,0,0,-7,-4,0,0,0,0,-14,0,0,0,0,0,0,0,0,0,0,0,0,42,44,51,56,89,0,8,0,0,0,0,0,0,0,0,-4,0,0,0,0,0,0,8,0,8,8,8,0,0,0,0,-17,0,-8,-8,-8,-8,-11,-9,-9,0,-40,-40,-167,-167,-148,-123,-29970,-29971,-29966,-29969,-29972,-29973,-29970,-12455]} 1. e4 {[%emt 0:01:00]} e5 {[%emt 0:01:00]} 2. Nf3 {[%emt 0:00:30]} Nc6 {[%emt 0:00:30]} 3. Bb5 {[%emt 0:00:00]} Nf6 {[%emt 0:00:00]} 4. d3 {[%emt 0:01:00][%cal Bd2d3,Bd3d4][%mdl 32]} Bc5 {[%emt 0:00:00]} 5. Bxc6 {[%emt 0:00:30]} dxc6 {[%emt 0:00:30]} 6. O-O {[%emt 0:00:30] C65: Ruy Lopez: Berlin Defence (3...Nf6), unusual lines and 4 0-0 Bc5.} Nd7 {[%emt 0:01:30]} 7. c3 {[%emt 0:01:30]} O-O {[%emt 0:00:30]} 8. d4 {[%emt 0:00:00] The position is equal.} Bd6 {[%emt 0:00:30]} 9. Bg5 {[%emt 0:15:00]} f6 {[%emt 0:01:30] 9...f6 scores better than 9...Qe8.} 10. Bh4 {[%emt 0:00:30]} Qe8 {[%emt 0:03:30]} 11. Re1 {[%emt 0:01:30]} c5 {[%emt 0:06:30]} 12. Bg3 {[%emt 0:00:30] [#]} Qe6 $146 {[%emt 0:07:30]} ({Predecessor:} 12... Kh8 13. Nbd2 Qe6 14. Qa4 Nb6 15. Qa5 exd4 16. cxd4 Bxg3 17. hxg3 cxd4 18. Nxd4 Qf7 {½-½ (33) Kryvoruchko,Y (2689)-Alekseev,E (2616) Riadh 2017}) 13. a4 {[%emt 0:12:30]} exd4 {[%emt 0:04:30]} (13... cxd4 {with more complications.} 14. cxd4 b6 15. Na3 a6) 14. Bxd6 {[%emt 0:11:30]} Qxd6 {[%emt 0:00:30]} 15. cxd4 {[%emt 0:00:30]} cxd4 {[%emt 0:00:30]} 16. Nxd4 {[%emt 0:07:30]} Nc5 {[%emt 0:02:30]} 17. b4 {[%emt 0:17:30]} Rd8 {[%emt 0:08:30] ...Ne6 is the strong threat.} 18. bxc5 {[%emt 0:00:30]} Qxd4 {[%emt 0:00:30]} 19. Qb3+ {[%emt 0:00:30]} Kh8 {[%emt 0:00:30]} 20. Nc3 {[%emt 0:00:00][%cal Bb1c3,Bc3d5,Bd5e3][%mdl 32] And now Red1 would win.} Qxc5 {[%emt 0:02:30]} 21. Nd5 {[%emt 0:00:00]} Qd6 {[%emt 0:08:30]} 22. Rad1 {[%emt 0:00:30]} Bg4 {[%emt 0:00:30]} 23. Rc1 {[%emt 0:02:30]} c6 {[%emt 0:07:30]} 24. Ne3 {[%emt 0:00:30]} Bc8 {[%emt 0:02:30]} 25. Red1 {[%emt 0:04:30]} Qf8 {[%emt 0:00:30]} 26. Rxd8 {[%emt 0:03:10]} Qxd8 {[%emt 0:00:30]} 27. Qf7 $1 {[%emt 0:00:30] Inhibits Qe7.} Qg8 $1 {[%emt 0:00:00]} 28. Qc7 {[%emt 0:01:00]} h6 {[%emt 0:06:00]} 29. Rd1 {[%emt 0:10:34]} Be6 {[%emt 0:00:30]} 30. Qxb7 {[%emt 0:00:30]} c5 {[%emt 0:00:00] [#]} 31. Qe7 {[%emt 0:05:18]} ({White should play} 31. Rd6 $1 $16 {[%cal Rd6e6] aiming for Rxe6!} Rd8 32. Rxd8 Qxd8 33. Qxa7) 31... Qe8 {[%emt 0:01:00]} 32. Qxc5 {[%emt 0:01:19]} Qxa4 {[%emt 0:00:30]} 33. e5 {[%emt 0:00:18] Threatens to win with exf6.} f5 {[%emt 0:00:30]} 34. g3 {[%emt 0:01:11]} Kh7 {[%emt 0:03:30]} 35. Rd4 {[%emt 0:00:29]} Qe8 {[%emt 0:00:30]} 36. Qa5 {[%emt 0:01:29]} Qf7 {[%emt 0:00:30]} 37. Ng2 {[%emt 0:01:13]} Rc8 {[%emt 0:01:30] Strongly threatening ...Rc1+.} 38. Rd1 {[%emt 0:00:10] Against Rc1} g5 {[%emt 0:08:30] Against Nf4} 39. Qd2 {[%emt 0:00:35]} Rc7 {[%emt 0:01:30]} 40. Ra1 {[%emt 0:00:06]} Rd7 {[%emt 0:00:30]} (40... Qd7 $5 {[%cal Rd7d2]} 41. Qe3 Qb5 $11) 41. Qe3 {[%emt 0:00:03]} Bd5 {[%emt 0:01:30]} 42. Ra6 {[%emt 0:01:36]} Rb7 {[%emt 0:01:30]} 43. Ra1 {[%emt 0:00:50] Inhibits Rb1+.} Rb3 {[%emt 0:02:01]} 44. e6 {[%emt 0:00:30]} Bxe6 {[%emt 0:00:30]} 45. Qc5 {[%emt 0:00:30]} Rb7 {[%emt 0:00:30]} 46. h4 {[%emt 0:00:30]} Bd5 {[%emt 0:00:30]} 47. Ne3 {[%emt 0:00:30]} Be4 {[%emt 0:00:30]} 48. f3 {[%emt 0:00:30]} f4 {[%emt 0:00:30][%cal Bf5f4,Bf4e3,Be3e2][%mdl 32]} 49. fxe4 {[%emt 0:00:30] Hoping for Nf5.} fxe3 $11 {[%emt 0:00:30][%mdl 4096] Endgame KQR-KQR} 50. Rf1 {[%emt 0:00:37] [#] Prevents Qf2+.} ({Better is} 50. Qxe3 $15 gxh4 51. Qf4) 50... e2 $1 $19 {[%emt 0:06:06]} 51. Re1 {[%emt 0:00:31]} (51. Rxf7+ Rxf7 52. Qc1 Rf1+ 53. Qxf1 exf1=Q+ 54. Kxf1 Kg6 $19) 51... gxh4 {[%emt 0:00:30] White must now prevent ...Rb3. Black is more active.} 52. g4 $2 {[%emt 0:00:00][%mdl 8192]} (52. Qd5 $17) 52... Rb3 {[%emt 0:01:10] Black mates.} 53. Qf5+ {[%emt 0:00:37]} Qxf5 {[%emt 0:00:30]} 54. exf5 {[%emt 0:00:30]} Re3 {[%emt 0:00:30]} 55. Kf2 {[%emt 0:00:30]} Re8 {[%emt 0:00:00] Weighted Error Value: White=0.26 (precise) /Black=0.04 (flawless)} 0-1

[Event "5th Baskent University Open 2022"]
[Site "Ankara"]
[Date "2022.07.04"]
[Round "5.2"]
[White "Atabayev, Saparmyrat"]
[Black "Gunduz, Umut Erdem"]
[Result "0-1"]
[ECO "D61"]
[WhiteElo "2447"]
[BlackElo "2368"]
[Annotator "TA"]
[PlyCount "60"]
[EventDate "2022.07.02"]
[EventType "swiss"]
[EventCountry "TUR"]
[SourceTitle "playchess.com"]
[Source "ChessBase"]
[SourceQuality "1"]
[TimeControl "5400+30"]

{[%evp 15,60,13,14,0,0,0,4,-5,-5,-8,0,0,0,-5,-6,-5,0,0,0,-10,0,0,-7,-27,-31,-36,-28,-20,0,0,0,0,0,-10,-1,0,27,34,32,-102,-125,-128,-114,-897,-858,-1887,-1752]} 1. d4 {[%emt 0:01:00]} e6 {[%emt 0:03:00]} 2. c4 {[%emt 0:01:30]} Nf6 {[%emt 0:00:30]} 3. Nc3 {[%emt 0:00:30]} d5 {[%emt 0:00:30]} 4. Bg5 {[%emt 0:00:00]} Be7 {[%emt 0:01:30]} 5. e3 {[%emt 0:00:00]} O-O {[%emt 0:01:30]} 6. Nf3 {[%emt 0:00:30]} Nbd7 {[%emt 0:00:30]} 7. Qc2 {[%emt 0:00:30]} c6 {[%emt 0:02:30]} 8. Bd3 {[%emt 0:03:30]} h6 {[%emt 0:03:30]} 9. Bf4 {[%emt 0:04:30] D61: Queen's Gambit Declined: Classical: 7 Qc2.} dxc4 {[%emt 0:01:30]} 10. Bxc4 {[%emt 0:00:00]} b5 {[%emt 0:00:30]} 11. Be2 {[%emt 0:05:00] The position is equal.} Bb7 {[%emt 0:01:30]} 12. O-O {[%emt 0:00:30]} a6 {[%emt 0:05:30] [#]} 13. a4 $146 {[%emt 0:02:30]} ({Predecessor:} 13. Rfc1 Rc8 14. a4 b4 15. Ne4 Nxe4 16. Qxe4 Nf6 17. Qd3 a5 18. Ne5 Nd7 19. Qe4 {1-0 (59) Tran,M (2159)-Tran,Q (2196) Dong Thap 2008}) 13... Rc8 {[%emt 0:05:30]} 14. Rfd1 {[%emt 0:01:30]} b4 {[%emt 0:02:30]} 15. Ne4 {[%emt 0:01:30]} Nxe4 {[%emt 0:00:30]} 16. Qxe4 {[%emt 0:00:30]} Nf6 {[%emt 0:00:30]} 17. Qe5 {[%emt 0:07:30]} Nd5 {[%emt 0:22:30]} 18. Bg3 {[%emt 0:04:30]} c5 {[%emt 0:03:30]} 19. e4 {[%emt 0:06:30]} Nf6 {[%emt 0:00:30]} ({Don't do} 19... Bf6 20. Qd6 $16 (20. Qh5 Nb6 $14)) 20. d5 {[%emt 0:11:30]} exd5 {[%emt 0:00:30]} 21. exd5 {[%emt 0:00:30] [#] Hoping for d6.} Re8 {[%emt 0:00:30] Strongly threatening ...Bf8.} 22. Bc4 {[%emt 0:00:30] Black must now prevent d6.} Bf8 {[%emt 0:12:30]} 23. Qf5 {[%emt 0:00:30]} Bd6 {[%emt 0:00:30]} 24. Bh4 {[%emt 0:19:30]} Qd7 {[%emt 0:04:30]} 25. Qd3 $36 {[%emt 0:00:30][%mdl 2048] White is pushing.} Ne4 {[%emt 0:02:30]} (25... g5 $5 26. Bg3 Bxg3 27. hxg3 Qd6 $11) 26. Re1 {[%emt 0:00:30]} f5 {[%emt 0:00:30]} 27. Nd2 {[%emt 0:03:30]} (27. Bg3 $14) 27... Nxd2 $17 {[%emt 0:03:30] Black is more active.} 28. Qxd2 {[%emt 0:00:30]} g5 {[%emt 0:04:04]} 29. Re6 $2 {[%emt 0:15:09][%mdl 8192] [#]} Rxe6 $19 {[%emt 0:00:30]} ({Not} 29... gxh4 30. Rg6+ Kh8 31. Rxh6+ Kg8 32. Qg5+ Qg7 33. Rg6 $18) 30. dxe6 {[%emt 0:00:00]} Bxh2+ $1 {[%emt 0:00:00] Weighted Error Value: White=0.60/Black=0.03 (flawless)} 0-1

[Event "5th Baskent University Open 2022"]
[Site "Ankara"]
[Date "2022.07.04"]
[Round "5.3"]
[White "Huseyinoglu, Alihan"]
[Black "Caputcuoglu, Zeki Berke"]
[Result "1/2-1/2"]
[ECO "E75"]
[WhiteElo "2213"]
[BlackElo "2203"]
[Annotator "RC"]
[PlyCount "53"]
[EventDate "2022.07.02"]
[EventType "swiss"]
[EventCountry "TUR"]
[SourceTitle "playchess.com"]
[Source "ChessBase"]
[SourceQuality "1"]
[TimeControl "5400+30"]

1. d4 {[%emt 0:03:00]} Nf6 {[%emt 0:01:00]} 2. c4 {[%emt 0:00:30]} g6 {[%emt 0:00:30]} 3. Nc3 {[%emt 0:00:00]} Bg7 {[%emt 0:00:00]} 4. e4 {[%emt 0:00:00]} d6 {[%emt 0:00:00]} 5. Be2 {[%emt 0:00:30]} O-O {[%emt 0:01:30]} 6. Bg5 {[%emt 0:00:30]} c5 {[%emt 0:02:30]} 7. d5 {[%emt 0:00:30]} e6 {[%emt 0:00:30]} 8. Qd2 {[%emt 0:00:30]} exd5 {[%emt 0:00:30]} 9. exd5 {[%emt 0:00:30]} Qb6 {[%emt 0:00:30]} 10. Nf3 {[%emt 0:00:30]} Bf5 {[%emt 0:04:30]} 11. Nh4 {[%emt 0:02:30]} Ne4 {[%emt 0:00:30]} 12. Nxe4 {[%emt 0:02:30]} Bxe4 {[%emt 0:00:30]} 13. f3 {[%emt 0:00:30]} h6 {[%emt 0:00:30]} 14. Bxh6 {[%emt 0:00:30]} Bxh6 {[%emt 0:00:00]} 15. Qxh6 {[%emt 0:00:30]} Qxb2 {[%emt 0:00:00]} 16. O-O {[%emt 0:02:30]} Bc2 {[%emt 0:00:30]} 17. Rac1 {[%emt 0:00:30]} Re8 {[%emt 0:00:30]} 18. Rf2 {[%emt 0:04:30]} Ba4 {[%emt 0:26:30]} 19. Rcf1 {[%emt 0:05:30]} Qg7 {[%emt 0:10:30]} 20. Qg5 {[%emt 0:03:30]} Nd7 {[%emt 0:02:30]} 21. f4 {[%emt 0:00:30]} Nf6 {[%emt 0:02:30]} 22. Bd3 {[%emt 0:12:30]} Ne4 {[%emt 0:01:30]} 23. Bxe4 {[%emt 0:00:30]} Rxe4 {[%emt 0:02:30]} 24. Qg3 {[%emt 0:31:30]} Qf6 {[%emt 0:08:30]} 25. Nf3 {[%emt 0:01:30]} Qf5 {[%emt 0:10:30]} 26. Nh4 {[%emt 0:07:37]} Qh5 {[%emt 0:03:30]} 27. Nf3 {[%emt 0:03:04]} 1/2-1/2

[Event "5th Baskent University Open 2022"]
[Site "Ankara"]
[Date "2022.07.04"]
[Round "5.5"]
[White "Unat, Can Haktan"]
[Black "Eynullayev, Atilla"]
[Result "0-1"]
[ECO "B55"]
[WhiteElo "2242"]
[BlackElo "2333"]
[Annotator "TA"]
[PlyCount "72"]
[EventDate "2022.07.02"]
[EventType "swiss"]
[EventCountry "TUR"]
[SourceTitle "playchess.com"]
[Source "ChessBase"]
[SourceQuality "1"]
[TimeControl "5400+30"]

{[%evp 14,72,-5,-6,-3,0,0,-8,-1,-51,-50,-34,-45,-49,-41,-52,-49,-60,-25,-16,14,22,89,27,0,-101,-108,-106,-108,-103,-108,-112,-141,-153,-146,-149,-123,-133,-41,-63,0,-17,-11,-14,0,0,0,-15,-12,-104,-103,-339,-324,-619,-609,-593,-587,-630,-629,-731,-488]} 1. e4 {[%emt 0:03:00]} c5 {[%emt 0:01:00]} 2. Nf3 {[%emt 0:00:30][%cal Bg1f3,Bf3d4,Bd4f5][%mdl 32]} d6 {[%emt 0:00:00]} 3. d4 {[%emt 0:00:30]} cxd4 {[%emt 0:00:00]} 4. Nxd4 {[%emt 0:00:30]} Nf6 {[%emt 0:00:30]} 5. f3 {[%emt 0:00:30]} e5 {[%emt 0:00:00]} 6. Bb5+ {[%emt 0:04:30]} Nbd7 {[%emt 0:00:00]} 7. Nf5 {[%emt 0:00:30]} d5 {[%emt 0:00:30]} 8. exd5 {[%emt 0:00:30] [#] Threatens to win with Qe2.} a6 {[%emt 0:00:30] B55: Sicilian: 2...d6 3 d4 cxd4 4 Nxd4 Nf6 5 f3.} 9. Bxd7+ {[%emt 0:00:30]} Bxd7 {[%emt 0:00:30]} 10. Ne3 {[%emt 0:00:30]} Nh5 {[%emt 0:00:00] The position is equal.} 11. g3 {[%emt 0:22:30] Inhibits Qh4.} (11. O-O $11) 11... Bc5 $15 {[%emt 0:01:00][%mdl 1024] Black has compensation.} 12. Nc3 {[%emt 0:03:30]} O-O {[%emt 0:03:30]} 13. Qd3 {[%emt 0:01:30] [#]} b5 $146 {[%emt 0:05:30]} ({Predecessor:} 13... f5 14. d6 Kh8 15. Bd2 f4 16. Ng2 Bh3 17. Nh4 Qxd6 18. Qxd6 Bxd6 19. g4 Nf6 {½-½ (38) Elci,A (2013)-Greig,S (2235) ICCF email 2019}) 14. a3 {[%emt 0:15:30]} f5 {[%emt 0:09:30]} 15. Bd2 {[%emt 0:00:30]} Qb6 {[%emt 0:07:30] ...f4 is the strong threat.} 16. O-O-O {[%emt 0:06:30][%cal Od5d6]} a5 {[%emt 0:14:30]} 17. d6 {[%emt 0:01:30]} Kh8 {[%emt 0:03:30]} (17... Qxd6 $11 {remains equal.} 18. Qxd6 Bxd6) 18. Ncd5 {[%emt 0:05:30]} (18. a4 $16) 18... Qxd6 $11 {[%emt 0:00:30] [#] Hoping for ...f4.} 19. g4 {[%emt 0:00:30]} (19. Bc3 $11 {keeps the balance.}) 19... fxg4 $17 {[%emt 0:11:30]} 20. fxg4 {[%emt 0:00:30]} Nf4 {[%emt 0:00:30]} 21. Nxf4 {[%emt 0:00:30]} exf4 {[%emt 0:00:30]} 22. Qxd6 {[%emt 0:01:30]} Bxd6 {[%emt 0:00:00] This bishop pair is nice.} 23. Nf5 {[%emt 0:02:30]} Bxf5 {[%emt 0:02:00]} 24. gxf5 {[%emt 0:00:30]} Rxf5 {[%emt 0:03:30]} 25. Bxa5 {[%emt 0:02:30]} Rxa5 {[%emt 0:02:30]} (25... Ra6 $17 26. Be1 g5) 26. Rxd6 {[%emt 0:00:00][%mdl 4096] Endgame Intending Rd8+ and mate. KRR-KRR} h6 {[%emt 0:00:30]} (26... g5 $15) 27. Kd2 {[%emt 0:01:00]} Ra7 {[%emt 0:04:30]} 28. Ke2 {[%emt 0:03:30]} Kh7 {[%emt 0:02:30]} 29. Kf3 {[%emt 0:04:00]} Re7 {[%emt 0:01:30]} 30. Rd3 {[%emt 0:03:25] Prevents Re3+.} Kg6 {[%emt 0:09:58]} 31. Rg1+ {[%emt 0:00:38]} (31. Rc3 $11) 31... Kh5 {[%emt 0:00:31] Strongly threatening ...g5.} 32. b3 $2 {[%emt 0:05:47] This move loses the game for White.} (32. h4 $17 {was forced.}) 32... g5 $19 {[%emt 0:01:07][%cal Bg7g5,Bg5g4][%mdl 32]} 33. c4 $2 {[%emt 0:04:59]} (33. h3) 33... bxc4 {[%emt 0:01:25] Black is clearly winning.} 34. bxc4 {[%emt 0:00:01]} g4+ {[%emt 0:09:36]} 35. Kf2 {[%emt 0:00:01]} Rfe5 {[%emt 0:01:39] ( -> ...Re2+)} 36. Rd5 {[%emt 0:01:10]} Kh4 {[%emt 0:00:10] Weighted Error Value: White=0.40/Black=0.13 (very precise)} 0-1

[Event "5th Baskent University Open 2022"]
[Site "Ankara"]
[Date "2022.07.04"]
[Round "5.6"]
[White "Makaraci, Tunahan"]
[Black "Dedebas, Emre Emin"]
[Result "1/2-1/2"]
[ECO "C11"]
[WhiteElo "2130"]
[BlackElo "2321"]
[Annotator "TA"]
[PlyCount "37"]
[EventDate "2022.07.02"]
[EventType "swiss"]
[EventCountry "TUR"]
[SourceTitle "playchess.com"]
[Source "ChessBase"]
[SourceQuality "1"]
[TimeControl "5400+30"]

{[%evp 16,20,20,14,25,25,3]} 1. e4 {[%emt 0:01:00]} e6 {[%emt 0:09:00]} 2. d4 {[%emt 0:00:00]} d5 {[%emt 0:00:30]} 3. Nc3 {[%emt 0:00:00]} Nf6 {[%emt 0:00:00]} 4. e5 {[%emt 0:00:30]} Nfd7 {[%emt 0:00:00]} 5. f4 {[%emt 0:00:30]} c5 {[%emt 0:00:30]} 6. Nf3 {[%emt 0:00:30]} Nc6 {[%emt 0:00:30]} 7. Be3 {[%emt 0:00:30]} Be7 {[%emt 0:00:30]} 8. Qd2 {[%emt 0:00:30]} O-O {[%emt 0:00:30]} 9. dxc5 {[%emt 0:00:30]} Qa5 {[%emt 0:00:30] C11: French: Classical System: 4 e5 and 4 Bg5 dxe4.} 10. a3 {[%emt 0:00:30]} Bxc5 {[%emt 0:12:30] [#] Not much happened in this game.} {Predecessor:} 11. Bxc5 $146 Nxc5 12. O-O-O Bd7 13. Qe3 Rac8 14. Kb1 Qb6 15. h4 Ne4 16. Qe1 Nd4 17. Nxd5 exd5 18. Rxd4 Rxc2 19. Kxc2 {0-1 (33) Navara,D (2697)-Ibarra Jerez,J (2558) Tornelo INT 2021} 1/2-1/2